bitfinex/quotes_BTCUSD_20241101
["timestamp","ask_amount","ask_price","bid_price","bid_amount"]
[1730427978407,0.000821,69316.0,69315.0,0.144268]
[1730427978646,0.000821,69316.0,69315.0,0.28272325]
[1730427979145,0.000821,69316.0,69315.0,0.31072325]
[1730427979428,0.000821,69316.0,69315.0,0.41572325]
[1730427980394,0.000821,69316.0,69315.0,0.42469091]
[1730427980644,0.000821,69316.0,69315.0,0.54360652]
[1730427980893,0.000821,69316.0,69315.0,0.68200652]
[1730427981154,0.000821,69316.0,69315.0,0.93046375]
[1730427981395,0.000821,69316.0,69315.0,0.76310652]
[1730427982517,0.000821,69316.0,69315.0,0.76110652]
[1730427982728,0.000821,69327.0,69326.0,0.005]
[1730427982948,0.00941749,69327.0,69326.0,0.47805848]
[1730427983220,0.000821,69327.0,69326.0,0.82299995]
[1730427984176,0.000821,69327.0,69326.0,0.82499995]
[1730427985286,0.000821,69327.0,69326.0,0.92999995]
[1730427985526,0.000821,69327.0,69326.0,0.92799995]
[1730427985750,0.000821,69327.0,69326.0,0.92999995]
[1730427986000,0.000821,69327.0,69326.0,0.93887879]
[1730427986447,0.000821,69327.0,69326.0,0.93687879]
[1730427986915,0.000821,69327.0,69326.0,0.93887879]
[1730427987451,0.000821,69327.0,69326.0,0.93687879]
[1730427988317,0.000821,69327.0,69326.0,0.93887879]
[1730427988521,0.000817,69328.0,69327.0,0.156243]
[1730427988737,0.000821,69336.0,69335.0,0.44658423]
[1730427988912,0.000821,69336.0,69335.0,0.58503948]
[1730427989728,0.000821,69336.0,69335.0,0.41068225]
[1730427989932,0.000821,69336.0,69335.0,0.38768225]
[1730427991009,0.000821,69336.0,69335.0,0.39268225]
[1730427991217,0.000821,69336.0,69335.0,0.52250177]
[1730427991416,0.000821,69336.0,69335.0,0.52132565]
[1730427991619,0.000821,69336.0,69335.0,0.53132565]
[1730427992235,0.000821,69336.0,69335.0,0.52632565]
[1730427992672,0.000821,69336.0,69335.0,0.52132565]
[1730427994621,0.000821,69336.0,69335.0,0.37709865]
[1730427994829,0.000821,69336.0,69335.0,0.52632565]
[1730427997342,0.000821,69336.0,69335.0,0.52132565]
[1730427997521,0.000821,69336.0,69335.0,0.37709865]
[1730427997692,0.000821,69336.0,69335.0,0.27027913]
[1730427997903,0.00959829,69336.0,69335.0,0.27027913]
[1730427998061,0.000821,69336.0,69335.0,0.27027913]
[1730427998261,0.00959829,69336.0,69335.0,0.26145525]
[1730427999373,0.00959829,69336.0,69335.0,0.23845525]
[1730427999578,0.00959829,69336.0,69335.0,0.27812318]
[1730427999960,0.145046,69336.0,69335.0,0.27812318]
[1730428000158,0.15382329,69336.0,69335.0,0.27812318]
[1730428000358,0.15382329,69336.0,69335.0,0.17812318]
[1730428000761,0.15382329,69336.0,69335.0,0.13845525]
[1730428002398,0.23172329,69336.0,69335.0,0.13845525]
[1730428004319,0.08749829,69336.0,69320.0,0.144256]
[1730428004539,0.08749829,69336.0,69319.0,0.1]
[1730428004540,0.288479,69330.0,69327.0,0.21769576]
[1730428004702,0.144239,69329.0,69328.0,0.16022483]
[1730428004902,0.153022,69329.0,69328.0,0.16022483]
[1730428007035,0.153022,69329.0,69307.0,0.58916276]
[1730428007036,0.288487,69327.0,69302.0,0.006642]
[1730428007350,0.222375,69312.0,69311.0,0.21769576]
[1730428007527,0.222375,69312.0,69302.0,0.001642]
[1730428007528,0.0781,69312.0,69302.0,0.001642]
[1730428007676,0.0781,69312.0,69302.0,0.02357578]
[1730428007677,0.31165023,69303.0,69302.0,0.02357578]
[1730428007886,0.144293,69303.0,69302.0,0.02357578]
[1730428008088,0.144293,69303.0,69302.0,0.001642]
[1730428008290,0.15298852,69303.0,69302.0,0.001642]
[1730428008887,0.32034575,69303.0,69302.0,0.001642]
[1730428009403,0.57034575,69303.0,69302.0,0.001642]
[1730428009625,0.64844575,69303.0,69302.0,0.001642]
[1730428009829,0.65344575,69303.0,69302.0,0.001642]
[1730428010038,0.92580298,69303.0,69302.0,0.001642]
[1730428010238,1.05940298,69303.0,69302.0,0.001642]
[1730428010392,0.89204575,69303.0,69302.0,0.001642]
[1730428010586,0.14432,69290.0,69289.0,0.00027086]
[1730428010782,0.32012424,69290.0,69289.0,0.00027086]
[1730428011608,0.39822424,69290.0,69289.0,0.00027086]
[1730428013739,0.39822424,69290.0,69280.0,0.001642]
[1730428013740,0.144339,69281.0,69280.0,0.001642]
[1730428013993,0.47905346,69281.0,69280.0,0.001642]
[1730428014168,0.48405346,69281.0,69280.0,0.001642]
[1730428014367,0.57940047,69281.0,69280.0,0.001642]
[1730428016411,0.67940047,69281.0,69280.0,0.001642]
[1730428018488,0.50704324,69281.0,69280.0,0.001642]
[1730428018690,0.51204324,69281.0,69280.0,0.001642]
[1730428019108,0.50704324,69281.0,69280.0,0.001642]
[1730428019246,0.51204324,69281.0,69280.0,0.001642]
[1730428019750,0.50704324,69281.0,69280.0,0.001642]
[1730428023072,0.50704324,69281.0,69280.0,0.0019942]
[1730428023279,0.68140047,69281.0,69280.0,0.0019942]
[1730428023479,0.394362,69270.0,69269.0,0.21769576]
[1730428023676,0.56171923,69270.0,69269.0,0.21769576]
[1730428023861,0.144368,69267.0,69265.0,0.001644]
[1730428024228,0.144368,69267.0,69266.0,0.16219763]
[1730428024356,0.144368,69267.0,69266.0,0.14009925]
[1730428024545,0.1526314,69267.0,69266.0,0.14009925]
[1730428024973,0.0082634,69267.0,69266.0,0.14009925]
[1730428025375,0.1526314,69267.0,69266.0,0.14009925]
[1730428031123,0.0082634,69267.0,69266.0,0.14009925]
[1730428031568,0.144368,69268.0,69266.0,0.14009925]
[1730428031777,0.144361,69271.0,69267.0,0.13845525]
[1730428031996,0.36205376,69272.0,69267.0,0.13845525]
[1730428032206,0.288709,69274.0,69267.0,0.13845525]
[1730428032400,0.144359,69272.0,69268.0,0.0631091]
[1730428032603,0.144359,69272.0,69269.0,0.13845525]
[1730428032924,0.144362,69270.0,69269.0,0.13845525]
[1730428034217,0.144362,69270.0,69266.0,0.001644]
[1730428034218,0.144368,69267.0,69266.0,0.001644]
[1730428034432,0.31172523,69267.0,69266.0,0.14009925]
[1730428034841,0.144368,69267.0,69266.0,0.14009925]
[1730428035065,0.31172523,69267.0,69266.0,0.14009925]
[1730428036981,0.144368,69267.0,69266.0,0.14009925]
[1730428037404,0.31172523,69267.0,69266.0,0.14009925]
[1730428038774,0.144368,69267.0,69266.0,0.14009925]
[1730428039968,0.144368,69267.0,69266.0,0.001644]
[1730428040977,0.394368,69267.0,69266.0,0.001644]
[1730428042183,0.37874148,69267.0,69266.0,0.001644]
[1730428042382,0.38693136,69267.0,69266.0,0.001644]
[1730428044927,0.13693136,69267.0,69266.0,0.001644]
[1730428045304,0.13693136,69267.0,69266.0,0.14009925]
[1730428045532,0.13693136,69267.0,69266.0,0.15427358]
[1730428048398,0.13693136,69267.0,69266.0,0.14009925]
[1730428049237,0.00818988,69267.0,69266.0,0.14009925]
[1730428049440,0.00818988,69267.0,69266.0,0.28446925]
[1730428049646,0.36205276,69273.0,69268.0,0.144366]
[1730428049856,0.21769576,69273.0,69269.0,0.13845525]
[1730428050063,0.144359,69272.0,69270.0,0.01417433]
[1730428050287,0.144359,69272.0,69271.0,0.13845525]
[1730428052217,0.005821,69280.0,69271.0,0.13845525]
[1730428052218,0.144352,69275.0,69271.0,0.13845525]
[1730428052431,0.000821,69280.0,69271.0,0.22095525]
[1730428052432,0.144344,69279.0,69271.0,0.22095525]
[1730428052638,0.144345,69279.0,69274.0,0.144353]
[1730428052847,0.000821,69280.0,69275.0,0.13845525]
[1730428053022,0.144345,69279.0,69275.0,0.13845525]
[1730428053228,0.144347,69278.0,69275.0,0.13845525]
[1730428053526,0.000821,69280.0,69275.0,0.13845525]
[1730428053726,0.144348,69277.0,69276.0,0.02557882]
[1730428053972,0.144348,69277.0,69270.0,0.01417433]
[1730428053973,0.16735723,69277.0,69264.0,0.21769576]
[1730428054124,0.144366,69268.0,69267.0,0.13845525]
[1730428054717,0.144368,69267.0,69252.0,0.21769576]
[1730428055139,0.144368,69267.0,69254.0,0.144395]
[1730428055370,0.144368,69267.0,69255.0,0.144392]
[1730428055615,0.144368,69267.0,69254.0,0.144394]
[1730428055816,0.144368,69267.0,69253.0,0.144397]
[1730428056836,0.144368,69267.0,69252.0,0.21769576]
[1730428057087,0.144368,69267.0,69266.0,0.14009925]
[1730428057296,0.538729,69270.0,69266.0,0.1710093]
[1730428057297,0.288725,69270.0,69266.0,0.1710093]
[1730428057468,0.15255278,69267.0,69266.0,0.03255405]
[1730428057609,0.144368,69267.0,69266.0,0.001644]
[1730428058007,0.15255278,69267.0,69266.0,0.14009925]
[1730428058232,0.15255278,69267.0,69266.0,0.001644]
[1730428058635,0.00818478,69267.0,69266.0,0.14009925]
[1730428059481,0.00818478,69267.0,69266.0,0.38956925]
[1730428059652,0.144358,69272.0,69267.0,0.144368]
[1730428059862,0.00818478,69271.0,69268.0,0.13845525]
[1730428060067,0.00818478,69271.0,69270.0,0.13845525]
[1730428060267,0.00818478,69271.0,69270.0,0.39091725]
[1730428060467,0.000821,69272.0,69271.0,0.28486]
[1730428060681,0.000821,69272.0,69271.0,0.99724782]
[1730428060936,0.000821,69280.0,69279.0,0.149343]
[1730428061142,0.0425224,69307.0,69306.0,0.1885]
[1730428061277,0.21769576,69312.0,69311.0,0.144277]
[1730428061490,0.21769576,69312.0,69311.0,0.31163423]
[1730428061706,0.25,69334.0,69318.0,0.144262]
[1730428061707,0.21769576,69326.0,69318.0,0.144262]
[1730428062127,0.21769576,69326.0,69320.0,0.144257]
[1730428062332,0.21769576,69326.0,69321.0,0.13845525]
[1730428062686,0.005821,69329.0,69321.0,0.13845525]
[1730428062818,0.144245,69327.0,69321.0,0.13845525]
[1730428063063,0.000821,69329.0,69322.0,0.04269793]
[1730428063267,0.000821,69329.0,69323.0,0.13845525]
[1730428063525,0.000821,69329.0,69324.0,0.144248]
[1730428063779,0.000821,69329.0,69325.0,0.13845525]
[1730428064389,0.000821,69329.0,69325.0,0.28270225]
[1730428064632,0.000821,69329.0,69325.0,0.13845525]
[1730428064829,0.000821,69329.0,69328.0,0.144241]
[1730428065041,0.000821,69329.0,69328.0,0.28269625]
[1730428066618,0.000821,69329.0,69328.0,0.31069625]
[1730428068977,0.000821,69329.0,69328.0,0.28269625]
[1730428069925,0.000821,69329.0,69328.0,0.27769625]
[1730428070154,0.000821,69329.0,69328.0,0.44417355]
[1730428071552,0.000821,69329.0,69328.0,0.41617355]
[1730428072871,0.000821,69329.0,69328.0,0.69287297]
[1730428073117,0.000821,69329.0,69328.0,0.91807297]
[1730428073823,0.000821,69329.0,69328.0,0.65937355]
[1730428074046,0.000821,69329.0,69328.0,0.41617355]
[1730428074258,0.000821,69329.0,69328.0,0.13845525]
[1730428074547,0.00954738,69329.0,69328.0,0.13845525]
[1730428074763,0.15378638,69329.0,69328.0,0.13845525]
[1730428074986,0.00954738,69329.0,69328.0,0.13845525]
[1730428075601,0.000821,69329.0,69328.0,0.13845525]
[1730428075804,0.000821,69329.0,69309.0,0.21769576]
[1730428076052,0.144255,69322.0,69316.0,0.21769576]
[1730428076249,0.00872638,69328.0,69317.0,0.35615101]
[1730428076493,0.289301,69329.0,69319.0,0.28852]
[1730428076841,0.144248,69325.0,69320.0,0.13845525]
[1730428077014,0.289301,69329.0,69321.0,0.050041]
[1730428077229,0.00872638,69324.0,69322.0,0.13845525]
[1730428077389,0.000821,69329.0,69322.0,0.13845525]
[1730428077709,0.000821,69329.0,69324.0,0.144249]
[1730428077913,0.000821,69329.0,69325.0,0.13845525]
[1730428078170,0.145061,69329.0,69325.0,0.13845525]
[1730428078381,0.145061,69329.0,69325.0,0.15230078]
[1730428079282,0.144245,69327.0,69325.0,0.13845525]
[1730428079701,0.14506,69329.0,69325.0,0.13845525]
[1730428080448,0.21769576,69328.0,69311.0,0.07936972]
[1730428080644,0.21769576,69328.0,69316.0,0.21769576]
[1730428080645,0.288508,69322.0,69316.0,0.21769576]
[1730428080847,0.25,69323.0,69306.0,0.288574]
[1730428081104,0.25,69323.0,69310.0,0.13845525]
[1730428081105,0.144277,69311.0,69310.0,0.13845525]
[1730428081323,0.25869942,69320.0,69302.0,0.21769576]
[1730428081540,0.005,69317.0,69303.0,0.13845525]
[1730428081740,0.144291,69304.0,69303.0,0.13845525]
[1730428082676,0.293533,69317.0,69303.0,0.28274825]
[1730428082893,0.288559,69310.0,69303.0,0.13845525]
[1730428083106,0.144284,69308.0,69303.0,0.13845525]
[1730428083313,0.288562,69309.0,69303.0,0.21735995]
[1730428083495,0.144285,69307.0,69303.0,0.21735995]
[1730428083692,0.288566,69308.0,69303.0,0.21735995]
[1730428084022,0.144291,69304.0,69293.0,0.21769576]
[1730428084250,0.25,69311.0,69285.0,0.54235942]
[1730428084251,0.25369942,69310.0,69297.0,0.21769576]
[1730428084466,0.25369942,69310.0,69290.0,0.21769576]
[1730428084467,0.144302,69299.0,69298.0,0.13845525]
[1730428084664,0.14431,69295.0,69290.0,0.36201576]
[1730428084869,0.288587,69303.0,69295.0,0.14431]
[1730428085089,0.288587,69303.0,69295.0,0.13845525]
[1730428085295,0.144304,69298.0,69295.0,0.13845525]
[1730428085496,0.2886,69300.0,69295.0,0.13845525]
[1730428085699,0.005,69307.0,69289.0,0.001642]
[1730428085700,0.21769576,69299.0,69289.0,0.001642]
[1730428085913,0.14432,69290.0,69289.0,0.001642]
[1730428086091,0.288627,69294.0,69289.0,0.001642]
[1730428086260,0.00843219,69290.0,69289.0,0.001642]
[1730428086468,0.14432,69290.0,69289.0,0.001642]
[1730428086674,0.15275219,69290.0,69289.0,0.001642]
[1730428087708,0.40775219,69290.0,69289.0,0.001642]
[1730428095309,0.15775219,69290.0,69289.0,0.001642]
[1730428097020,0.00843219,69290.0,69289.0,0.28442025]
[1730428097223,0.144298,69301.0,69289.0,0.14009725]
[1730428097224,0.21769576,69299.0,69289.0,0.14009725]
[1730428097434,0.15263997,69290.0,69289.0,0.14009725]
[1730428097571,0.288629,69294.0,69289.0,0.14009725]
[1730428097768,0.14431,69295.0,69290.0,0.32565108]
[1730428097986,0.144309,69296.0,69290.0,0.32565008]
[1730428098343,0.288612,69297.0,69290.0,0.32565008]
[1730428098344,0.005,69298.0,69290.0,0.18133108]
[1730428098542,0.21769576,69306.0,69290.0,0.18133108]
[1730428098543,0.005,69311.0,69293.0,0.21769576]
[1730428098693,0.36198276,69307.0,69295.0,0.432931]
[1730428098899,0.144287,69307.0,69296.0,0.20706388]
[1730428099125,0.144288,69306.0,69300.0,0.144299]
[1730428099443,0.144288,69306.0,69301.0,0.13845525]
[1730428099668,0.144286,69307.0,69301.0,0.28275225]
[1730428099846,0.144289,69305.0,69301.0,0.13845525]
[1730428099981,0.144289,69305.0,69302.0,0.05713673]
[1730428100188,0.144289,69305.0,69303.0,0.13845525]
[1730428100433,0.144291,69304.0,69303.0,0.13845525]
[1730428101279,0.288562,69309.0,69303.0,0.13845525]
[1730428101501,0.29961676,69328.0,69304.0,0.01384553]
[1730428101705,0.29961676,69328.0,69308.0,0.288566]
[1730428101706,0.21769576,69319.0,69308.0,0.288566]
[1730428101887,0.144255,69322.0,69316.0,0.144266]
[1730428102078,0.288497,69325.0,69317.0,0.15288185]
[1730428102299,0.00842153,69321.0,69317.0,0.15288185]
[1730428102431,0.000821,69328.0,69317.0,0.37057761]
[1730428102633,0.00842153,69320.0,69319.0,0.144258]
[1730428102871,0.000821,69328.0,69319.0,0.24764531]
[1730428103075,0.145063,69328.0,69321.0,0.288512]
[1730428103277,0.00842153,69327.0,69325.0,0.144247]
[1730428103932,0.00842153,69327.0,69326.0,0.28270125]
[1730428104352,0.000821,69328.0,69326.0,0.28270125]
[1730428104353,0.000821,69328.0,69327.0,0.144243]
[1730428104477,0.000821,69328.0,69327.0,0.39613863]
[1730428104714,0.000821,69328.0,69327.0,0.39325405]
[1730428107279,0.000821,69328.0,69327.0,0.60755405]
[1730428107487,0.000821,69328.0,69327.0,0.28269825]
[1730428114701,0.000821,69328.0,69327.0,0.13845525]
[1730428114915,0.15379433,69328.0,69314.0,0.288538]
[1730428115130,0.00955333,69328.0,69327.0,0.36193876]
[1730428115327,0.000821,69328.0,69327.0,0.28269825]
[1730428115970,0.000821,69328.0,69327.0,0.39319825]
[1730428116172,0.000821,69328.0,69327.0,0.39519825]
[1730428116415,0.000821,69328.0,69327.0,0.69115692]
[1730428117147,0.000821,69328.0,69327.0,0.68915692]
[1730428117632,0.000821,69328.0,69327.0,0.69079892]
[1730428117830,0.000821,69336.0,69330.0,0.01]
[1730428117978,0.000821,69336.0,69335.0,0.4499507]
[1730428118210,0.000821,69336.0,69335.0,0.55008068]
[1730428119780,0.000821,69336.0,69335.0,0.66008068]
[1730428122380,0.000821,69336.0,69335.0,0.66892474]
[1730428123303,0.000821,69336.0,69335.0,0.66692474]
[1730428123505,0.000821,69336.0,69335.0,0.66892474]
[1730428125984,0.000821,69336.0,69335.0,0.66392474]
[1730428126214,0.000821,69336.0,69335.0,0.66192474]
[1730428126431,0.000821,69336.0,69335.0,0.65692474]
[1730428126664,0.000821,69336.0,69335.0,0.66192474]
[1730428127083,0.000821,69336.0,69335.0,0.66392474]
[1730428128026,0.000821,69336.0,69335.0,0.66892474]
[1730428129596,0.000821,69336.0,69335.0,0.91339319]
[1730428129820,0.000821,69336.0,69335.0,0.74612474]
[1730428130307,0.000821,69336.0,69335.0,0.91339319]
[1730428130750,0.21851676,69354.0,69349.0,0.44646645]
[1730428130974,0.21851676,69354.0,69349.0,0.71330579]
[1730428131217,0.000821,69354.0,69349.0,0.71330579]
[1730428132157,0.000821,69354.0,69349.0,0.41303734]
[1730428135433,0.000821,69354.0,69349.0,0.44103734]
[1730428136544,0.000821,69354.0,69349.0,0.57694734]
[1730428136744,0.000821,69354.0,69349.0,0.57494734]
[1730428137370,0.000821,69354.0,69349.0,0.57694734]
[1730428137773,0.000821,69354.0,69349.0,0.53603734]
[1730428138751,0.000821,69354.0,69349.0,0.41303734]
[1730428140443,0.000821,69354.0,69349.0,0.43603734]
[1730428141200,0.000821,69354.0,69349.0,0.41303734]
[1730428144875,0.000821,69354.0,69349.0,0.70330579]
[1730428145493,0.000821,69354.0,69349.0,0.53603734]
[1730428146607,0.000821,69354.0,69349.0,0.70330579]
[1730428147186,0.000821,69354.0,69349.0,0.70530579]
[1730428147394,0.000821,69354.0,69349.0,0.70330579]
[1730428148255,0.000821,69354.0,69349.0,0.41303734]
[1730428149413,0.00972996,69350.0,69349.0,0.41303734]
[1730428151251,0.00972996,69350.0,69349.0,0.26883934]
[1730428151481,0.00972996,69350.0,69349.0,0.13845525]
[1730428152472,0.15392596,69350.0,69349.0,0.13845525]
[1730428152691,0.288398,69349.0,69342.0,0.144212]
[1730428152927,0.144208,69344.0,69343.0,0.13845525]
[1730428153531,0.00890404,69344.0,69343.0,0.13845525]
[1730428153741,0.15311204,69344.0,69343.0,0.20291445]
[1730428154236,0.15311204,69344.0,69343.0,0.13845525]
[1730428154462,0.00890404,69344.0,69328.0,0.001642]
[1730428154801,0.144223,69337.0,69336.0,0.13845525]
[1730428155418,0.00890404,69337.0,69336.0,0.13845525]
[1730428155643,0.0808,69343.0,69336.0,0.13845525]
[1730428155644,0.000817,69351.0,69336.0,0.3846088]
[1730428155844,0.000817,69351.0,69344.0,0.144208]
[1730428155845,0.145013,69350.0,69344.0,0.144208]
[1730428155974,0.145013,69350.0,69336.0,0.3846088]
[1730428155975,0.145013,69350.0,69345.0,0.28265925]
[1730428156186,0.000817,69350.0,69345.0,0.13845525]
[1730428156385,0.144199,69349.0,69345.0,0.13845525]
[1730428156591,0.145013,69350.0,69346.0,0.01384553]
[1730428156785,0.000817,69350.0,69346.0,0.29650478]
[1730428156996,0.145014,69350.0,69346.0,0.15230078]
[1730428157198,0.000817,69350.0,69347.0,0.13845525]
[1730428157800,0.1442,69348.0,69347.0,0.13845525]
[1730428158061,0.1442,69348.0,69347.0,0.16810653]
[1730428158658,0.1442,69348.0,69347.0,0.13845525]
[1730428159610,0.000817,69350.0,69347.0,0.13845525]
[1730428159818,0.000817,69350.0,69349.0,0.144198]
[1730428160035,0.000817,69350.0,69349.0,0.28265325]
[1730428161304,0.00972104,69350.0,69349.0,0.28265325]
[1730428161519,0.000817,69350.0,69349.0,0.34114353]
[1730428164065,0.000817,69350.0,69349.0,0.19694553]
[1730428164480,0.00972104,69350.0,69349.0,0.19694553]
[1730428165348,0.00972104,69350.0,69349.0,0.34114353]
[1730428165796,0.000817,69350.0,69349.0,0.34114353]
[1730428166544,0.000817,69350.0,69349.0,0.37114353]
[1730428166744,0.000817,69350.0,69349.0,0.58620723]
[1730428167160,0.000817,69350.0,69349.0,0.57920723]
[1730428168507,0.000817,69350.0,69349.0,0.58420723]
[1730428168832,0.000817,69350.0,69349.0,0.57920723]
[1730428169264,0.000817,69350.0,69349.0,0.58420723]
[1730428170702,0.000817,69350.0,69349.0,0.58620723]
[1730428170903,0.000817,69350.0,69349.0,0.80190299]
[1730428171046,0.000817,69350.0,69349.0,0.74429561]
[1730428171428,0.000817,69350.0,69349.0,0.74427477]
[1730428171633,0.000817,69356.0,69353.0,0.208099]
[1730428171838,0.000817,69362.0,69358.0,0.06391]
[1730428172040,0.000817,69362.0,69358.0,0.44654425]
[1730428172657,0.000817,69362.0,69361.0,0.422383]
[1730428172867,0.000817,69362.0,69361.0,0.7281067]
[1730428173113,0.000817,69362.0,69361.0,0.866584]
[1730428174002,0.21769576,69386.0,69373.0,0.149148]
[1730428174210,0.21769576,69378.0,69373.0,0.4798717]
[1730428174448,0.144101,69396.0,69373.0,0.4798717]
[1730428174449,0.21769576,69405.0,69396.0,0.1441]
[1730428174880,0.149078,69407.0,69393.0,0.288211]
[1730428174881,0.144078,69407.0,69393.0,0.288211]
[1730428175119,0.288148,69409.0,69396.0,0.1441]
[1730428175530,0.288134,69413.0,69396.0,0.1441]
[1730428175734,0.144072,69410.0,69396.0,0.1671]
[1730428176137,0.144075,69409.0,69396.0,0.1671]
[1730428176342,0.576265,69413.0,69396.0,0.1671]
[1730428177161,0.144072,69410.0,69396.0,0.1691]
[1730428177363,0.288131,69413.0,69396.0,0.17198154]
[1730428177576,0.288107,69419.0,69396.0,0.56028364]
[1730428177740,0.21769576,69416.0,69396.0,0.6574021]
[1730428178154,0.21769576,69416.0,69396.0,0.6624021]
[1730428178356,0.21769576,69415.0,69396.0,0.6624021]
[1730428179775,0.000816,69420.0,69396.0,0.6624021]
[1730428180008,0.000816,69420.0,69419.0,0.172052]
[1730428180225,0.000816,69420.0,69419.0,0.21328375]
[1730428180435,0.000816,69420.0,69419.0,0.13845525]
[1730428180690,0.00995874,69420.0,69419.0,0.13845525]
[1730428181753,0.000816,69420.0,69419.0,0.13845525]
[1730428181979,0.000816,69420.0,69419.0,0.3057237]
[1730428181980,0.01017114,69420.0,69419.0,0.3057237]
[1730428182199,0.000816,69420.0,69419.0,0.33719069]
[1730428183731,0.000816,69420.0,69419.0,0.48124269]
[1730428184756,0.000816,69420.0,69419.0,0.50924269]
[1730428185152,0.000816,69420.0,69419.0,0.50424269]
[1730428185360,0.000816,69420.0,69419.0,0.36019069]
[1730428185568,0.000816,69420.0,69419.0,0.19292224]
[1730428185769,0.000816,69420.0,69419.0,0.16992224]
[1730428186269,0.01027068,69420.0,69419.0,0.13845525]
[1730428187338,0.15432068,69420.0,69419.0,0.13845525]
[1730428188399,0.14932068,69420.0,69419.0,0.13845525]
[1730428188590,0.15298168,69420.0,69419.0,0.13845525]
[1730428189002,0.15380268,69420.0,69419.0,0.13845525]
[1730428189131,0.15380268,69420.0,69419.0,0.15230078]
[1730428189353,0.17702113,69420.0,69401.0,0.21769576]
[1730428189570,0.144063,69414.0,69413.0,0.21769576]
[1730428189769,0.16726845,69416.0,69401.0,0.21769576]
[1730428189770,0.144088,69402.0,69401.0,0.21769576]
[1730428189974,0.15301968,69402.0,69401.0,0.35615101]
[1730428190201,0.15301968,69402.0,69401.0,0.13845525]
[1730428190409,0.23391968,69402.0,69401.0,0.15871546]
[1730428191323,0.00893168,69402.0,69401.0,0.15871546]
[1730428191533,0.00893168,69402.0,69401.0,0.30280546]
[1730428191749,0.080321,69420.0,69402.0,0.023]
[1730428191750,0.144052,69419.0,69402.0,0.023]
[1730428191952,0.28813,69414.0,69409.0,0.13845525]
[1730428192360,0.288113,69417.0,69409.0,0.13845525]
[1730428192566,0.144071,69410.0,69409.0,0.13845525]
[1730428192969,0.1529176,69410.0,69409.0,0.13845525]
[1730428193178,0.0088466,69410.0,69398.0,0.21769576]
[1730428193394,0.144094,69399.0,69398.0,0.21769576]
[1730428193595,0.144094,69399.0,69398.0,0.23946534]
[1730428193805,0.144094,69399.0,69382.0,0.005]
[1730428193806,0.16726845,69399.0,69381.0,0.21769576]
[1730428194010,0.144112,69390.0,69389.0,0.21769576]
[1730428194433,0.144119,69387.0,69381.0,0.21769576]
[1730428194843,0.144119,69387.0,69386.0,0.14061624]
[1730428195046,0.1529656,69387.0,69386.0,0.14061624]
[1730428195249,0.1529656,69387.0,69386.0,0.17644744]
[1730428197717,0.32023405,69387.0,69386.0,0.14061624]
[1730428198601,0.0088466,69387.0,69386.0,0.14061624]
[1730428199023,0.144117,69388.0,69386.0,0.14061624]
[1730428199231,0.15282843,69387.0,69386.0,0.00216099]
[1730428200065,0.15282843,69387.0,69386.0,0.14061624]
[1730428200270,0.15282843,69387.0,69386.0,0.14225624]
[1730428200910,0.15282843,69387.0,69386.0,0.15648186]
[1730428201118,0.15282843,69387.0,69386.0,0.14225624]
[1730428202211,0.32009688,69387.0,69386.0,0.00380099]
[1730428202426,0.39779688,69387.0,69386.0,0.00380099]
[1730428202842,0.40779688,69387.0,69386.0,0.00380099]
[1730428204151,0.40279688,69387.0,69386.0,0.00380099]
[1730428204809,0.23552843,69387.0,69386.0,0.00380099]
[1730428205008,0.40279688,69387.0,69386.0,0.00380099]
[1730428208210,0.39779688,69387.0,69386.0,0.00164]
[1730428208898,0.23052843,69387.0,69386.0,0.14009525]
[1730428209709,0.23052843,69387.0,69386.0,0.00164]
[1730428210345,0.34252843,69387.0,69386.0,0.00164]
[1730428210554,0.34252843,69387.0,69364.0,0.21769576]
[1730428210555,0.31143245,69365.0,69364.0,0.21769576]
[1730428210988,0.144164,69365.0,69364.0,0.21769576]
[1730428211242,0.288318,69368.0,69356.0,0.21769576]
[1730428211455,0.082,69369.0,69363.0,0.21769576]
[1730428211668,0.082,69369.0,69356.0,0.21769576]
[1730428211669,0.144165,69365.0,69364.0,0.16022483]
[1730428211879,0.005,69375.0,69364.0,0.16022483]
[1730428211880,0.144151,69372.0,69366.0,0.144161]
[1730428212092,0.005,69381.0,69368.0,0.144157]
[1730428212326,0.144145,69375.0,69370.0,0.144154]
[1730428212545,0.255,69388.0,69366.0,0.288325]
[1730428212546,0.00870943,69387.0,69372.0,0.35615101]
[1730428212760,0.00870943,69387.0,69372.0,0.13845525]
[1730428212761,0.21769576,69384.0,69372.0,0.13845525]
[1730428212971,0.288276,69378.0,69372.0,0.13845525]
[1730428213183,0.00870943,69387.0,69372.0,0.13845525]
[1730428213184,0.144148,69373.0,69372.0,0.13845525]
[1730428213601,0.144133,69381.0,69372.0,0.13845525]
[1730428213851,0.00870943,69387.0,69373.0,0.01384553]
[1730428213852,0.144136,69379.0,69373.0,0.01384553]
[1730428214056,0.144136,69379.0,69374.0,0.13845525]
[1730428214264,0.288267,69380.0,69374.0,0.13845525]
[1730428214477,0.288259,69382.0,69374.0,0.13845525]
[1730428214691,0.144141,69377.0,69375.0,0.21769576]
[1730428214905,0.16726845,69383.0,69376.0,0.13845525]
[1730428215165,0.144158,69368.0,69367.0,0.21769576]
[1730428215380,0.144158,69368.0,69367.0,0.35615101]
[1730428215996,0.144158,69368.0,69367.0,0.13845525]
[1730428216846,0.288325,69366.0,69356.0,0.21933576]
[1730428217065,0.144181,69357.0,69356.0,0.21933576]
[1730428217272,0.288325,69366.0,69356.0,0.36351776]
[1730428217273,0.144171,69362.0,69356.0,0.36351776]
[1730428217479,0.144171,69362.0,69357.0,0.144179]
[1730428217710,0.288329,69365.0,69356.0,0.21933576]
[1730428217915,0.01410776,69361.0,69358.0,0.144177]
[1730428218127,0.288329,69365.0,69358.0,0.144177]
[1730428218128,0.144169,69363.0,69358.0,0.144177]
[1730428218340,0.144171,69362.0,69357.0,0.05167449]
[1730428218545,0.01410776,69362.0,69357.0,0.19585449]
[1730428218762,0.01410776,69362.0,69358.0,0.13845525]
[1730428219047,0.288329,69365.0,69359.0,0.05536455]
[1730428219251,0.144173,69361.0,69360.0,0.13845525]
[1730428219817,0.15828076,69361.0,69360.0,0.13845525]
[1730428221610,0.144181,69357.0,69356.0,0.00164]
[1730428221781,0.144181,69357.0,69356.0,0.14009525]
[1730428222326,0.15828876,69357.0,69356.0,0.14009525]